Workbook

Sheet Обработка
I2: ARAI CO., LTD
I3: UNO JIKOU CO., LTD
H4: GOLDEN RAY TRADING AND DEVELOPMENT LIMITED | I4: TRIANGLE TYRE CO., LTD.
H5: EAST CITY INTERNATIONAL DEVELOPMENT LIMITED | I5: LEONID AUTO SPARE PARTS TR. LL
I6: SUIFENHE CITY NEW AND GREAT
I7: SUIFENHE WANLI
I8: KAIHO SANGYO CO., LTD
I9: Hongtyre Group Co.
I10: QINGDAO YELLOW SEA RUBBER CO., LTD.
G25: =CONCATENATE("HGEC-",VALUE(CONCATENATE(MID(TEXT(E25,"ДД.ММ.ГГГГ"),7,4),MID(TEXT(E25,"ДД.ММ.ГГГГ"),4,2),MID(TEXT(E25,"ДД.ММ.ГГГГ"),1,2))),"-1") -> HGEC-19000100-1
B26: Когда делали | C26: Ст-с | D26: Год | E26: Дата инвойса | F26: Дата инвойса опл. | G26: № инвойса | H26: Покупатель | I26: Продавец | J26: Наименование | K26: Размер | L26: Кол-во П. | M26: Кол-во Ф. | N26: Тип кл-во | O26: Вес | P26: Цена за ед. П. | Q26: Цена за ед. Ф. | R26: Сумма П. | S26: Сумма покупки Ф. | T26: Наценка | U26: Цена продажи | V26: Сумма продажи
H27: GOLDEN RAY TRADING AND DEVELOPMENT LIMITED | I27: TRIANGLE TYRE CO., LTD.
B28: 2013-01-15 | C28: 1 | D28: =YEAR(E28) -> 2012 | E28: 2012-04-09 | F28: 2012-04-11 | G28: HGEC-20120409-1 | H28: EAST CITY INTERNATIONAL DEVELOPMENT LIMITED | I28: Hongtyre Group Co. | J28: 9.00R20-16PR | K28: RS612 | L28: =ROUND(S28/Q28,0) -> 206 | M28: 206 | N28: SETS | P28: =S28/M28 -> 213.592233 | Q28: 213.592233 | R28: =M28*Q28 -> 44000 | S28: 44000 | T28: 0.2 | U28: =Q28*(1+T28) -> 256.3106796 | V28: =U28*M28 -> 52800
B29: 2013-01-15 | C29: 1 | D29: =YEAR(E29) -> 2012 | E29: 2012-04-11 | F29: 2012-04-13 | G29: HGEC-20120411-1 | H29: EAST CITY INTERNATIONAL DEVELOPMENT LIMITED | I29: Hongtyre Group Co. | J29: 9.00R20-16PR | K29: RS612 | L29: =ROUND(S29/Q29,0) -> 288 | M29: 288 | N29: SETS | P29: =S29/M29 -> 213.6190278 | Q29: 213.6190278 | R29: 61522.28 | S29: 61522.28 | T29: 0.2 | U29: =Q29*(1+T29) -> 256.3428333 | V29: =U29*M29 -> 73826.736
B30: 2013-01-15 | C30: 1 | D30: =YEAR(E30) -> 2012 | E30: 2012-04-11 | F30: 2012-04-13 | G30: HGEC-20120411-1 | H30: EAST CITY INTERNATIONAL DEVELOPMENT LIMITED | I30: Hongtyre Group Co. | J30: 9.00R20-17PR | K30: RS612 | L30: =ROUND(S30/Q30,0) -> 288 | M30: 200 | N30: SETS | P30: =S30/M30 -> 307.6114 | Q30: 213.6190278 | R30: =M30*Q30 -> 42723.80556 | S30: 61522.28 | T30: 0.2 | U30: =Q30*(1+T30) -> 256.3428333 | V30: =U30*M30 -> 51268.56667
B31: 2013-01-15 | C31: 1 | D31: 2012 | E31: 2012-04-26 | F31: 2012-04-28 | G31: HGEC-20120426-1 | H31: EAST CITY INTERNATIONAL DEVELOPMENT LIMITED | I31: Hongtyre Group Co. | J31: 9.00R20-16PR | K31: RS612 | L31: 137 | M31: 137 | N31: SETS | P31: 213.1386861 | Q31: 213.1386861 | R31: 29200 | S31: 29200 | T31: 0.2 | U31: 255.7664234 | V31: 35040
B32: 2013-01-15 | C32: 1 | D32: 2012 | E32: 2012-05-01 | F32: 2012-05-03 | G32: HGEC-20120501-1 | H32: EAST CITY INTERNATIONAL DEVELOPMENT LIMITED | I32: Hongtyre Group Co. | J32: 9.00R20-16PR | K32: RS612 | L32: 297 | M32: 206 | N32: SETS | P32: 308.2524272 | Q32: 213.8047138 | R32: 44043.77104 | S32: 63500 | T32: 0.2 | U32: 256.5656566 | V32: 52852.52525
B33: 2013-01-15 | C33: 1 | D33: 2012 | E33: 2012-05-16 | F33: 2012-05-18 | G33: HGEC-20120516-1 | H33: EAST CITY INTERNATIONAL DEVELOPMENT LIMITED | I33: Hongtyre Group Co. | J33: 9.00R20-16PR | K33: RS612 | L33: 281 | M33: 281 | N33: SETS | P33: 213.5231317 | Q33: 213.5231317 | R33: 60000 | S33: 60000 | T33: 0.2 | U33: 256.227758 | V33: 72000
B34: 2013-01-15 | C34: 1 | D34: 2012 | E34: 2012-05-28 | F34: 2012-05-30 | G34: HGEC-20120528-1 | H34: EAST CITY INTERNATIONAL DEVELOPMENT LIMITED | I34: Hongtyre Group Co. | J34: 9.00R20-16PR | K34: RS612 | L34: 147 | M34: 147 | N34: SETS | P34: 212.9251701 | Q34: 212.9251701 | R34: 31300 | S34: 31300 | T34: 0.2 | U34: 255.5102041 | V34: 37560
B35: 2013-01-15 | C35: 1 | D35: 2012 | E35: 2012-06-05 | F35: 2012-06-07 | G35: HGEC-20120605-1 | H35: EAST CITY INTERNATIONAL DEVELOPMENT LIMITED | I35: Hongtyre Group Co. | J35: 9.00R20-16PR | K35: RS612 | L35: 287 | M35: 287 | N35: SETS | P35: 213.3449477 | Q35: 213.3449477 | R35: 61230 | S35: 61230 | T35: 0.2 | U35: 256.0139373 | V35: 73476
B36: 2013-01-15 | C36: 1 | D36: 2012 | E36: 2012-06-13 | F36: 2012-06-15 | G36: HGEC-20120613-1 | H36: EAST CITY INTERNATIONAL DEVELOPMENT LIMITED | I36: Hongtyre Group Co. | J36: 9.00R20-16PR | K36: RS612 | L36: 210 | M36: 210 | N36: SETS | P36: 213.8095238 | Q36: 213.8095238 | R36: 44900 | S36: 44900 | T36: 0.2 | U36: 256.5714286 | V36: 53880
B37: 2013-01-15 | C37: 1 | D37: 2012 | E37: 2012-06-19 | F37: 2012-06-21 | G37: HGEC-20120619-1 | H37: EAST CITY INTERNATIONAL DEVELOPMENT LIMITED | I37: Hongtyre Group Co. | J37: 9.00R20-16PR | K37: RS612 | L37: 304 | M37: 304 | N37: SETS | P37: 213.8157895 | Q37: 213.8157895 | R37: 65000 | S37: 65000 | T37: 0.2 | U37: 256.5789474 | V37: 78000
B38: 2013-01-15 | C38: 1 | D38: 2012 | E38: 2012-06-25 | F38: 2012-06-27 | G38: HGEC-20120625-1 | H38: EAST CITY INTERNATIONAL DEVELOPMENT LIMITED | I38: Hongtyre Group Co. | J38: 9.00R20-16PR | K38: RS612 | L38: 475 | M38: 475 | N38: SETS | P38: 213.8105263 | Q38: 213.8105263 | R38: 101560 | S38: 101560 | T38: 0.2 | U38: 256.5726316 | V38: 121872
B39: 2013-01-15 | C39: 1 | D39: 2012 | E39: 2012-06-26 | F39: 2012-06-28 | G39: HGEC-20120626-1 | H39: EAST CITY INTERNATIONAL DEVELOPMENT LIMITED | I39: Hongtyre Group Co. | J39: 9.00R20-16PR | K39: RS612 | L39: 237 | M39: 237 | N39: SETS | P39: 213.5021097 | Q39: 213.5021097 | R39: 50600 | S39: 50600 | T39: 0.2 | U39: 256.2025316 | V39: 60720
B40: 2013-01-15 | C40: 1 | D40: 2012 | E40: 2012-07-02 | F40: 2012-07-04 | G40: HGEC-20120702-1 | H40: EAST CITY INTERNATIONAL DEVELOPMENT LIMITED | I40: Hongtyre Group Co. | J40: 9.00R20-16PR | K40: RS612 | L40: 424 | M40: 424 | N40: SETS | P40: 213.5141509 | Q40: 213.5141509 | R40: 90530 | S40: 90530 | T40: 0.2 | U40: 256.2169811 | V40: 108636
B41: 2013-01-15 | C41: 1 | D41: 2012 | E41: 2012-07-04 | F41: 2012-07-06 | G41: HGEC-20120704-1 | H41: EAST CITY INTERNATIONAL DEVELOPMENT LIMITED | I41: Hongtyre Group Co. | J41: 9.00R20-16PR | K41: RS612 | L41: 271 | M41: 271 | N41: SETS | P41: 213.2841328 | Q41: 213.2841328 | R41: 57800 | S41: 57800 | T41: 0.2 | U41: 255.9409594 | V41: 69360
B42: 2013-01-15 | C42: 1 | D42: 2012 | E42: 2012-07-08 | F42: 2012-07-10 | G42: HGEC-20120708-1 | H42: EAST CITY INTERNATIONAL DEVELOPMENT LIMITED | I42: Hongtyre Group Co. | J42: 9.00R20-16PR | K42: RS612 | L42: 252 | M42: 252 | N42: SETS | P42: 213.4920635 | Q42: 213.4920635 | R42: 53800 | S42: 53800 | T42: 0.2 | U42: 256.1904762 | V42: 64560
B43: 2013-01-15 | C43: 1 | D43: 2012 | E43: 2012-07-15 | F43: 2012-07-17 | G43: HGEC-20120715-1 | H43: EAST CITY INTERNATIONAL DEVELOPMENT LIMITED | I43: Hongtyre Group Co. | J43: 9.00R20-16PR | K43: RS612 | L43: 303 | M43: 303 | N43: SETS | P43: 213.5313531 | Q43: 213.5313531 | R43: 64700 | S43: 64700 | T43: 0.2 | U43: 256.2376238 | V43: 77640
B44: 2013-01-15 | C44: 1 | D44: 2012 | E44: 2012-07-16 | F44: 2012-07-18 | G44: HGEC-20120716-1 | H44: EAST CITY INTERNATIONAL DEVELOPMENT LIMITED | I44: Hongtyre Group Co. | J44: 9.00R20-16PR | K44: RS612 | L44: 468 | M44: 468 | N44: SETS | P44: 213.6752137 | Q44: 213.6752137 | R44: 100000 | S44: 100000 | T44: 0.2 | U44: 256.4102564 | V44: 120000
B45: 2013-01-15 | C45: 1 | D45: 2012 | E45: 2012-08-07 | F45: 2012-08-09 | G45: HGEC-20120807-1 | H45: EAST CITY INTERNATIONAL DEVELOPMENT LIMITED | I45: Hongtyre Group Co. | J45: 9.00R20-16PR | K45: RS612 | L45: 701 | M45: 701 | N45: SETS | P45: 213.5520685 | Q45: 213.5520685 | R45: 149700 | S45: 149700 | T45: 0.2 | U45: 256.2624822 | V45: 179640
B46: 2013-01-15 | C46: 1 | D46: 2012 | E46: 2012-09-02 | F46: 2012-09-04 | G46: HGEC-20120902-1 | H46: EAST CITY INTERNATIONAL DEVELOPMENT LIMITED | I46: Hongtyre Group Co. | J46: 9.00R20-16PR | K46: RS612 | L46: 459 | M46: 459 | N46: SETS | P46: 213.5076253 | Q46: 213.5076253 | R46: 98000 | S46: 98000 | T46: 0.2 | U46: 256.2091503 | V46: 117600
B47: 2013-01-15 | C47: 1 | D47: 2012 | E47: 2012-09-03 | F47: 2012-09-05 | G47: HGEC-20120903-1 | H47: EAST CITY INTERNATIONAL DEVELOPMENT LIMITED | I47: Hongtyre Group Co. | J47: 9.00R20-16PR | K47: RS612 | L47: 552 | M47: 552 | N47: SETS | P47: 213.7681159 | Q47: 213.7681159 | R47: 118000 | S47: 118000 | T47: 0.2 | U47: 256.5217391 | V47: 141600
B48: 2013-01-15 | C48: 1 | D48: 2012 | E48: 2012-09-04 | F48: 2012-09-06 | G48: HGEC-20120904-1 | H48: EAST CITY INTERNATIONAL DEVELOPMENT LIMITED | I48: Hongtyre Group Co. | J48: 9.00R20-16PR | K48: RS612 | L48: 536 | M48: 536 | N48: SETS | P48: 213.4328358 | Q48: 213.4328358 | R48: 114400 | S48: 114400 | T48: 0.2 | U48: 256.119403 | V48: 137280
B49: 2013-01-15 | C49: 1 | D49: 2012 | E49: 2012-09-05 | F49: 2012-09-07 | G49: HGEC-20120905-1 | H49: EAST CITY INTERNATIONAL DEVELOPMENT LIMITED | I49: Hongtyre Group Co. | J49: 9.00R20-16PR | K49: RS612 | L49: 446 | M49: 446 | N49: SETS | P49: 213.67713 | Q49: 213.67713 | R49: 95300 | S49: 95300 | T49: 0.2 | U49: 256.4125561 | V49: 114360
B50: 2013-01-15 | C50: 1 | D50: 2012 | E50: 2012-09-09 | F50: 2012-09-11 | G50: HGEC-20120909-1 | H50: EAST CITY INTERNATIONAL DEVELOPMENT LIMITED | I50: Hongtyre Group Co. | J50: 9.00R20-16PR | K50: RS612 | L50: 1508 | M50: 1508 | N50: SETS | P50: 213.5278515 | Q50: 213.5278515 | R50: 322000 | S50: 322000 | T50: 0.2 | U50: 256.2334218 | V50: 386400
B51: 2013-01-15 | C51: 1 | D51: 2012 | E51: 2012-09-10 | F51: 2012-09-12 | G51: HGEC-20120910-1 | H51: EAST CITY INTERNATIONAL DEVELOPMENT LIMITED | I51: Hongtyre Group Co. | J51: 9.00R20-16PR | K51: RS612 | L51: 693 | M51: 693 | N51: SETS | P51: 213.5642136 | Q51: 213.5642136 | R51: 148000 | S51: 148000 | T51: 0.2 | U51: 256.2770563 | V51: 177600
B52: 2013-01-15 | C52: 1 | D52: 2012 | E52: 2012-09-11 | F52: 2012-09-13 | G52: HGEC-20120911-1 | H52: EAST CITY INTERNATIONAL DEVELOPMENT LIMITED | I52: Hongtyre Group Co. | J52: 9.00R20-16PR | K52: RS612 | L52: 301 | M52: 301 | N52: SETS | P52: 213.6312292 | Q52: 213.6312292 | R52: 64303 | S52: 64303 | T52: 0.2 | U52: 256.3574751 | V52: 77163.6
B53: 2013-01-15 | C53: 1 | D53: 2012 | E53: 2012-09-16 | F53: 2012-09-18 | G53: HGEC-20120916-1 | H53: EAST CITY INTERNATIONAL DEVELOPMENT LIMITED | I53: Hongtyre Group Co. | J53: 9.00R20-16PR | K53: RS612 | L53: 791 | M53: 791 | N53: SETS | P53: 213.653603 | Q53: 213.653603 | R53: 169000 | S53: 169000 | T53: 0.2 | U53: 256.3843236 | V53: 202800
B54: 2013-01-15 | C54: 1 | D54: 2012 | E54: 2012-09-23 | F54: 2012-09-25 | G54: HGEC-20120923-1 | H54: EAST CITY INTERNATIONAL DEVELOPMENT LIMITED | I54: Hongtyre Group Co. | J54: 9.00R20-16PR | K54: RS612 | L54: 679 | M54: 679 | N54: SETS | P54: 213.5493373 | Q54: 213.5493373 | R54: 145000 | S54: 145000 | T54: 0.2 | U54: 256.2592047 | V54: 174000
B55: 2013-01-15 | C55: 1 | D55: 2012 | E55: 2012-10-12 | F55: 2012-10-16 | G55: HGEC-20121012-1 | H55: EAST CITY INTERNATIONAL DEVELOPMENT LIMITED | I55: Hongtyre Group Co. | J55: 9.00R20-16PR | K55: RS612 | L55: 690 | M55: 690 | N55: SETS | P55: 213.7391304 | Q55: 213.7391304 | R55: 147480 | S55: 147480 | T55: 0.2 | U55: 256.4869565 | V55: 176976
B56: 2013-01-15 | C56: 1 | D56: 2012 | E56: 2012-10-12 | F56: 2012-10-16 | G56: HGEC-20121012-2 | H56: EAST CITY INTERNATIONAL DEVELOPMENT LIMITED | I56: Hongtyre Group Co. | J56: 9.00R20-16PR | K56: RS612 | L56: 742 | M56: 742 | N56: SETS | P56: 213.4770889 | Q56: 213.4770889 | R56: 158400 | S56: 158400 | T56: 0.2 | U56: 256.1725067 | V56: 190080
B57: 2013-01-15 | C57: 1 | D57: 2012 | E57: 2012-10-12 | F57: 2012-10-16 | G57: HGEC-20121012-3 | H57: EAST CITY INTERNATIONAL DEVELOPMENT LIMITED | I57: Hongtyre Group Co. | J57: 9.00R20-16PR | K57: RS612 | L57: 692 | M57: 692 | N57: SETS | P57: 213.583815 | Q57: 213.583815 | R57: 147800 | S57: 147800 | T57: 0.2 | U57: 256.300578 | V57: 177360
B58: 2013-01-15 | C58: 1 | D58: 2012 | E58: 2012-10-12 | F58: 2012-10-16 | G58: HGEC-20121012-4 | H58: EAST CITY INTERNATIONAL DEVELOPMENT LIMITED | I58: Hongtyre Group Co. | J58: 9.00R20-16PR | K58: RS612 | L58: 808 | M58: 808 | N58: SETS | P58: 213.490099 | Q58: 213.490099 | R58: 172500 | S58: 172500 | T58: 0.2 | U58: 256.1881188 | V58: 207000
B59: 2013-01-15 | C59: 1 | D59: 2012 | E59: 2012-10-17 | F59: 2012-10-18 | G59: HGEC-20121017-1 | H59: EAST CITY INTERNATIONAL DEVELOPMENT LIMITED | I59: Hongtyre Group Co. | J59: 9.00R20-16PR | K59: RS612 | L59: 1014 | M59: 1014 | N59: SETS | P59: 213.5502959 | Q59: 213.5502959 | R59: 216540 | S59: 216540 | T59: 0.2 | U59: 256.260355 | V59: 259848
T60: 0.2
T61: 0.2
T62: 0.2
T63: 0.2
T64: 0.2
T65: 0.2
T66: 0.2
T67: 0.2
T68: 0.2
T69: 0.2
T70: 0.2
T71: 0.2
T72: 0.2
T73: 0.2
T74: 0.2
T75: 0.2
T76: 0.2
T77: 0.2
T78: 0.2
T79: 0.2
T80: 0.2
T81: 0.2
T82: 0.2
T83: 0.2
T84: 0.2
T85: 0.2
T86: 0.2
T87: 0.2
T88: 0.2
T89: 0.2
T90: 0.2
T91: 0.2
T92: 0.2
T93: 0.2
T94: 0.2
T95: 0.2
T96: 0.2
T97: 0.2
T98: 0.2
T99: 0.2
T100: 0.2

Sheet Hongtyre Group
B2: HONGTYRE GROUP CO. Add:Hongtyre Industrial Park,No.43 Bankok Road, Qingdao Free Trade Zone,Qingdao,China
G3: Tel: 0086-532-8676 6033
G4: Fax: 0086-532-8676 9331 | J4: № invoice
G5: Email: kenwang@hongtyre.com
B6: PROFORMA INVOICE
B7: =CONCATENATE("Buyer: ",K13) -> Buyer: EAST CITY INTERNATIONAL DEVELOPMENT LIMITED | F7: No.: | G7: =J9 -> HGEC-20120411-1
F8: Date: | G8: =I13 -> 2012-04-11
F9: Location: Qingdao, China | I9: № инвойса | J9: HGEC-20120411-1
B10: Commodity: Chinese Radial Truck Tyres
B11: Brand: ROADSHINE | N11: Значения
B12: Size | C12: Pattern | D12: Unit Price (FOB Qingdao) | E12: Quantity | G12: Amount (FOB Qingdao) | I12: Дата инвойса | J12: Продавец | K12: Покупатель | L12: Наименование | M12: Размер | N12: Кол-во Ф. | O12: Цена за ед. Ф. | P12: Сумма покупки Ф.
E13: 40'HQ | F13: SETS | I13: 2012-04-11 | J13: Hongtyre Group Co. | K13: EAST CITY INTERNATIONAL DEVELOPMENT LIMITED | L13: 9.00R20-16PR | M13: RS612 | N13: 288 | O13: 213.6190278 | P13: 61522.28
L14: 9.00R20-17PR | M14: RS612 | N14: 200 | O14: 213.6190278 | P14: 61522.28
B15: =L13 -> 9.00R20-16PR | C15: =M13 -> RS612 | D15: =O13 -> 213.6190278 | F15: =N13 -> 288 | G15: =P13 -> 61522.28
B16: =L14 -> 9.00R20-17PR | C16: =M14 -> RS612 | D16: =O14 -> 213.6190278 | F16: =N14 -> 200 | G16: =P14 -> 61522.28
B17: =L15 -> 0 | C17: 0 | D17: =O15 -> 0 | F17: =N15 -> 0 | G17: =P15 -> 0
B18: =L16 -> 0 | C18: 0 | D18: 0 | F18: 0 | G18: 0
B19: =L17 -> 0 | C19: 0 | D19: 0 | F19: 0 | G19: 0
B20: =L18 -> 0 | C20: 0 | D20: 0 | F20: 0 | G20: 0
B21: =L19 -> 0 | C21: 0 | D21: 0 | F21: 0 | G21: 0
B22: =L20 -> 0 | C22: 0 | D22: 0 | F22: 0 | G22: 0
B23: =L21 -> 0 | C23: 0 | D23: 0 | F23: 0 | G23: 0
B24: =L22 -> 0 | C24: 0 | D24: 0 | F24: 0 | G24: 0
B25: =L23 -> 0 | C25: 0 | D25: 0 | F25: 0 | G25: 0
B26: =L24 -> 0 | C26: 0 | D26: 0 | F26: 0 | G26: 0
B27: =L25 -> 0 | C27: 0 | D27: 0 | F27: 0 | G27: 0
B28: =L26 -> 0 | C28: 0 | D28: 0 | F28: 0 | G28: 0
B29: TOTAL | E29: =SUM(E28:E28) -> 0 | F29: =SUM(F15:F28) -> 488 | G29: =SUM(G15:G28) -> 123044.56
J30: Область документа, который нужно создать
B31: 1. Payment Term: By 30% TT within 3 days after the contract signing date ,balance 70%by TT will be paid after B/L within 5 days.
B32: 2. Bank Details:
B33: i). Beneficiary Bank: HSBC Bank (China) Company Limited, Qingdao Branch | J33: =J13 -> Hongtyre Group Co. | K33: =J9 -> HGEC-20120411-1 | L33: =G29 -> 123044.56
B34: ADD:8/F,CROWNE PLAZA,76 XIANGGANG ZHONG LU,QINGDAO,PEOPLE'S REPUBLIC OF CHINA
B35: SWIFT: HSBCCNSHQDO
B36: ii). Beneficiary: Hongtyre Group Co.
B37: A/C No.: 304-000292-055
B38: iii). Correspondent Bank: HSBC Bank USA, New York | J38: Название Файла | L38: =J33&" - "&K33&" - "&L33 -> Hongtyre Group Co. - HGEC-20120411-1 - 123044,56
B39: SWIFT: MRMDUS33 in favor of A/C 000-04281-1
B40: Note: In T/T payment instruction to be: "the banking charges incurred outside of beneficiary's to be covered by the applicant".
B41: 3. Port of Loading: Qingdao, China
B42: 4. Port of Destination: commercial port,Vladivostok
B43: 5. Packing: Export standard for container shipment without wrapping
B44: 6. Insurance: To be covered by the Buyer
B45: 7. Delivery Time: Prompt delivery subject to the availability of vessel and deposit
B46: 8. Delivery Terms: i). Partial Shipment: Allowed ii).Transhipment: Allowed
B47: iii). 5% more or less in quantity and amount allowed
B48: 9. i). In case that the buyer shall not effect the payment on time as per the above terms, all the losses and charges arising from this shall be borne by the buyer.
B49: ii). In case that the ocean freight shall have a big change/increase, both shall recalculate the new ocean freight and price of CFR.
B50: 10.This Contract shall take into effective since signed/sealed by both parties, and the faxed/scan copy shall be deemed equally authentic with the original.
B52: =K13 -> EAST CITY INTERNATIONAL DEVELOPMENT LIMITED | F52: =J13 -> Hongtyre Group Co.

Sheet Лист1
